Workbook

Sheet दिशानिर्देश
B1: उपयोग के दिशानिर्देश
B2: 1 | C2: इस वर्कबुक को मोबाइल फ्रेंडली बनाया गया है |
B3: 2 | C3: MASTER DATA SHEET की सभी पूर्तियां करनी अनिवार्य है |
B4: 3 | C4: मोबाइल में उपयोग हेतु WPS OFFICE APPLICATION या MICROSOFT EXCLE APPLICATION काम में ले, अन्यथा वर्कबुक ठीक प्रकार से काम नही करेगी |
B5: 4 | C5: मास्टर डाटा शीट में अपना वेतन व व्यक्तिगत जानकारी भरें व GA55 से विवरण का मिलान कर लेंवें विसंगति होने पर GA55 में मेन्यूल सुधार कर लेंवें |
B6: 5 | C6: EXTRA DEDUCATION शीट में वेतन के अतिरिक्त आय, विभिन्न कटौतियाँ, विभिन्न जमा राशि / छूट, वेतन के अलावा काटा गया आयकर आदि विवरण लिखा जाना है ।
B7: 6 | C7: OLD TAX REGIME व NEW TAX REGIME वाली शीट पूर्णतया लॉक है इसमें कुछ भी लिखने की अनुमति नही है जो भी सुधार करना हो GA55 व EXTRA DEDUCATION वाली शीटमें करे |
B8: 7 | C8: GA55 व TAX SHEETS को पेपर साइज़ A4 पर सेट किया हुआ है, OLD TAX REGIME OR NEW TAX REGIME में से जिसमे फायदा हो उसे चुने व उसका प्रिंट ले लेंवें |
A10: यह प्रोग्राम राजस्थान के शिक्षकों के अनुरूप बनाया गया है सुनील कुमार महावर, अध्यापक राउमावि वीर धोलिया, मावली, (उदयपुर) किसी भी प्रकार की समस्या / सुझाव के लिए ईमेल करें-sk969019@gmail.com या WhatsApp :- 9664061084
A11: You Tube:- DIGITAL GURUJI HELP

Sheet MASTERDATA
B1: MASTER DATA | H1: हमारे यू - ट्यूब चैनल को सबस्क्राइब अवश्य करें व साथ ही नोटिफिकेशन बेल को भी दबाये ताकि नवीनतम अपडेट्स आप तक पहुँच सकें DIGITALGURUJI HELP
B2: कार्मिक की व्यक्तिगत जानकारी | I2: NA
B3: 1 | C3: कार्यालय का नाम:- | D3: GOVT SR SEC SCHOOL VEER DHOLIYA | I3: 2024-03-01
B4: 2 | C4: कार्यालय का TAN NO.:- | D4: JDH70C | E4: 13 | F4: DDO का नाम:- | G4: MR. SANTOSH KUMAR VYAS | I4: 2024-04-01
B5: 3 | C5: कार्मिक का नाम:- | D5: SUNIL KUMAR MAHAWAR | E5: 14 | F5: कार्मिक का पद:- | G5: TEACHER | I5: 2024-05-01
B6: 4 | C6: कार्मिक का PAN NO.:- | D6: GGGGGHGH | E6: 15 | F6: कार्मिक का A/C NO.:- | G6: 44444444444444 | I6: 2024-06-01
B7: 5 | C7: SI नंबर:- | E7: 16 | F7: राज्य बीमा मासिक कटौती राशि:- | G7: 5000 | I7: 2024-07-01
B8: 6 | C8: GPF NO.:- | D8: GPF066 | E8: 17 | F8: कार्मिक का मोबाईल नंबर:- | I8: 2024-08-01
B9: 7 | C9: मार्च 2024 का मूल वेतन:- | D9: 40100 | E9: 18 | F9: HOUSE RENT ALL. दर | G9: 10% | I9: 2024-09-01
B10: 8 | C10: पे लेवल :- | D10: L10 | E10: 19 | F10: GPF की मासिक कटौती:- | G10: 2100 | I10: 2024-10-01
B11: 9 | C11: क्या आपने वित्तीय वर्ष 2024-25 मे समर्पित लिया है? | D11: NO | E11: 20 | F11: यदि हाँ, तो समर्पित बिल माह:- | G11: 2024-08-01 | I11: 2024-11-01 | L11: L1
B12: 10 | C12: क्या आपको बोनस मिला है ? | D12: NO | E12: 21 | F12: क्या आपने RGHS कटौती का विकल्प लिया है ? | G12: YES | I12: 2024-12-01 | K12: YES | L12: L2
B13: 11 | C13: दुर्घटना बीमा प्रीमियम राशि:- | E13: 22 | F13: क्या हितकारी निधि की कटौती करनी है ? | G13: YES | I13: 2025-01-01 | K13: NO | L13: L3
B14: 12 | C14: क्या आप वरिष्ट नागरिक (60-80) आयु वर्ग में आते है ? | D14: NO | E14: 23 | F14: शहरी क्षतिपूर्ती भत्ता (CCA) :- | G14: NA | I14: 2025-02-01 | J14: NA | K14: NA | L14: L4
B15: NOTE:- इस वर्क बुक को तैयार करने मे पूर्ण सावधानी बरती गयी है, यदि फिर भी कोई विसंगति होती है तो, विभागीय आदेश ही मान्य होंगे, जिसका उत्तरदायित्व शीट तैयार करने वाले का नही होगा | | J15: 10% | K15: 2022-03-22 | L15: L5
C16: https://youtu.be/7a0Kds6wPcg | J16: 20% | K16: 2022-04-22 | L16: L6
H17: JJJJJJ | J17: NA | K17: 2022-05-22 | L17: L7
J18: 320 | K18: 2022-06-22 | L18: L8
J19: 620 | K19: 2022-07-22 | L19: L9
J20: 1000 | K20: 2022-08-22 | L20: L10
K21: 2022-09-22 | L21: L11
K22: 2022-10-22 | L22: L12
K23: 2022-11-22 | L23: L13
K24: 2022-12-22 | L24: L14
K25: 2022-01-23 | L25: L15
K26: 2022-02-23 | L26: L16
L27: L17
L28: L18
L29: L19
L30: L20
L31: L21
L32: L22
L33: L23
L34: L24
L35: L25

Sheet GA55
C2: =MASTERDATA!D3 -> GOVT SR SEC SCHOOL VEER DHOLIYA
C3: Salary and Deduction Detail for FY : 2024-25
C5: Name : | D5: =MASTERDATA!D5 -> SUNIL KUMAR MAHAWAR | K5: PAN : | M5: =MASTERDATA!D6 -> GGGGGHGH | R5: TAN: | S5: =MASTERDATA!D4 -> JDH70C | Y5: Bank A/c : | AA5: =MASTERDATA!G6 -> 44444444444444
C6: Post : | D6: =IF(MASTERDATA!G5="","",CONCATENATE(MASTERDATA!G5," ","(",MASTERDATA!D10,")")) -> TEACHER (L10) | K6: SI No : | M6: =MASTERDATA!D7 -> 0 | R6: =MASTERDATA!C8 -> GPF NO.:- | T6: =IF(MASTERDATA!D8="","",MASTERDATA!D8) -> GPF066 | Y6: Mobile No. : | AA6: =MASTERDATA!G8 -> 0
C7: Month | D7: Basic Pay | E7: Dearness Pay | F7: Leave Pay | G7: Spl. Pay | H7: D.A. | I7: H.R.A. | J7: Washing Allow. | K7: ROP (If any, put the value in minus) | L7: =IF(MASTERDATA!G14="NA","Other Allowance","CCA") -> Other Allowance | M7: Other Allowance | N7: Gross Salary | O7: GPF/GPF2004 | P7: GPF LOAN | Q7: SI | R7: SI LOAN + INT | S7: RGHS / RPMF | T7: LIC | U7: Group Insurance Accidental | V7: Income Tax / TDS | W7: Hitkari Nidhi | X7: Other Deduction | Y7: Other Deduction | Z7: Total Deduction | AA7: Net Payment | AB7: Bill No. - Date / TV No. - Date
B8: 3 | C8: 2024-03-01 | D8: =MASTERDATA!D9 -> 40100 | E8: 0 | F8: 0 | G8: 0 | H8: =ROUND(50%*D8,0) -> 20050 | I8: =IF(MASTERDATA!$G$9="NA",0,IF(MASTERDATA!$G$9=10%,ROUND(0.09*D8,0),ROUND(0.18*D8,0))) -> 3609 | L8: =IF(MASTERDATA!G14="NA","",MASTERDATA!G14) ->  | N8: =SUM(D8:M8) -> 63759 | O8: =MASTERDATA!G10 -> 2100 | P8: 0 | Q8: =MASTERDATA!G7 -> 5000 | S8: =IF(MASTERDATA!$G$12="NO",0,IF(D9<18001,265,IF(D9<33501,440,IF(D9<54001,658,875)))) -> 658 | T8: 2576 | U8: 0 | Z8: =SUM(O8:Y8) -> 10,334 | AA8: =N8-Z8 -> 53,425
B9: 4 | C9: 2024-04-01 | D9: =D8 -> 40100 | E9: 0 | F9: 0 | G9: 0 | H9: =ROUND(50%*D9,0) -> 20050 | I9: =IF(MASTERDATA!$G$9="NA",0,IF(MASTERDATA!$G$9=10%,ROUND(0.09*D9,0),ROUND(0.18*D9,0))) -> 3609 | J9: 0 | K9: 0 | L9: =IF(L$8=L78,0,L8) -> 0 | M9: =M8 -> 0 | N9: 63759 | O9: =O8 -> 2100 | P9: 0 | Q9: =Q8 -> 5000 | R9: =R8 -> 0 | S9: =IF(MASTERDATA!$G$12="NO",0,IF(D10<18001,265,IF(D10<33501,440,IF(D10<54001,658,875)))) -> 658 | T9: =T8 -> 2576 | U9: 700 | V9: =V8 -> 0 | Y9: 0 | Z9: =SUM(O9:Y9) -> 11,034 | AA9: 52,725
B10: 5 | C10: 2024-05-01 | D10: =D9 -> 40100 | E10: 0 | F10: 0 | G10: 0 | H10: 20050 | I10: =IF(MASTERDATA!$G$9="NA",0,IF(MASTERDATA!$G$9=10%,ROUND(0.09*D10,0),ROUND(0.18*D10,0))) -> 3609 | J10: 0 | K10: 0 | L10: =IF(L$8=0,0,L9) -> 0 | M10: =M9 -> 0 | N10: 63759 | O10: =O11 -> 2100 | P10: 0 | Q10: 5000 | R10: 0 | S10: =IF(MASTERDATA!$G$12="NO",0,IF(D10<18001,265,IF(D10<33501,440,IF(D10<54001,658,875)))) -> 658 | T10: 2576 | U10: 0 | V10: =V9 -> 0 | Y10: 0 | Z10: 10,334 | AA10: 53,425
B11: 6 | C11: 2024-06-01 | D11: =D10 -> 40100 | E11: 0 | F11: 0 | G11: 0 | H11: 20050 | I11: =IF(MASTERDATA!$G$9="NA",0,IF(MASTERDATA!$G$9=10%,ROUND(0.09*D11,0),ROUND(0.18*D11,0))) -> 3609 | J11: 0 | K11: 0 | L11: 0 | M11: 0 | N11: 63759 | O11: =MASTERDATA!G10 -> 2100 | P11: 0 | Q11: 5000 | R11: 0 | S11: =IF(MASTERDATA!$G$12="NO",0,IF(D11<18001,265,IF(D11<33501,440,IF(D11<54001,658,875)))) -> 658 | T11: 2576 | U11: 0 | V11: 0 | Y11: 0 | Z11: 10,334 | AA11: 53,425
B12: 7 | C12: 2024-07-01 | D12: =MROUND(ROUND(1.03*D11,0),100) -> 41300 | E12: 0 | F12: 0 | G12: 0 | H12: 20650 | I12: =IF(MASTERDATA!$G$9="NA",0,IF(MASTERDATA!$G$9=10%,ROUND(0.09*D12,0),ROUND(0.18*D12,0))) -> 3717 | J12: 0 | K12: 0 | L12: 0 | M12: 0 | N12: 65667 | O12: 2100 | P12: 0 | Q12: 5000 | R12: 0 | S12: =IF(MASTERDATA!$G$12="NO",0,IF(D12<18001,265,IF(D12<33501,440,IF(D12<54001,658,875)))) -> 658 | T12: 2576 | U12: 0 | V12: 0 | Y12: 0 | Z12: 10,334 | AA12: 55,333
B13: 8 | C13: 2024-08-01 | D13: =D12 -> 41300 | E13: 0 | F13: 0 | G13: 0 | H13: 20650 | I13: =IF(MASTERDATA!$G$9="NA",0,IF(MASTERDATA!$G$9=10%,ROUND(0.09*D13,0),ROUND(0.18*D13,0))) -> 3717 | J13: 0 | K13: 0 | L13: 0 | M13: 0 | N13: 65667 | O13: =O12 -> 2100 | P13: 0 | Q13: 5000 | R13: 0 | S13: =IF(MASTERDATA!$G$12="NO",0,IF(D13<18001,265,IF(D13<33501,440,IF(D13<54001,658,875)))) -> 658 | T13: 2576 | U13: 0 | V13: 0 | Y13: 0 | Z13: 10,334 | AA13: 55,333
B14: 9 | C14: 2024-09-01 | D14: 41300 | E14: 0 | F14: 0 | G14: 0 | H14: 20650 | I14: =IF(MASTERDATA!$G$9="NA",0,IF(MASTERDATA!$G$9=10%,ROUND(0.09*D14,0),ROUND(0.18*D14,0))) -> 3717 | J14: 0 | K14: 0 | L14: 0 | M14: 0 | N14: 65667 | O14: 2100 | P14: 0 | Q14: 5000 | R14: 0 | S14: =IF(MASTERDATA!$G$12="NO",0,IF(D14<18001,265,IF(D14<33501,440,IF(D14<54001,658,875)))) -> 658 | T14: 2576 | U14: 0 | V14: 0 | Y14: 0 | Z14: 10,334 | AA14: 55,333
B15: 10 | C15: 2024-10-01 | D15: 41300 | E15: 0 | F15: 0 | G15: 0 | H15: 20650 | I15: =IF(MASTERDATA!$G$9="NA",0,IF(MASTERDATA!$G$9=10%,ROUND(0.09*D15,0),ROUND(0.18*D15,0))) -> 3717 | J15: 0 | K15: 0 | L15: 0 | M15: 0 | N15: =SUM(D15:M15) -> 65667 | O15: 2100 | P15: 0 | Q15: 5000 | R15: 0 | S15: =IF(MASTERDATA!$G$12="NO",0,IF(D15<18001,265,IF(D15<33501,440,IF(D15<54001,658,875)))) -> 658 | T15: 2576 | U15: 0 | V15: 0 | Y15: 0 | Z15: 10,334 | AA15: 55,333
B16: 11 | C16: 2024-11-01 | D16: 41300 | E16: 0 | F16: 0 | G16: 0 | H16: =ROUND(53%*D16,0) -> 21889 | I16: =IF(MASTERDATA!$G$9="NA",0,IF(MASTERDATA!$G$9=10%,ROUND(0.1*D16,0),ROUND(0.2*D16,0))) -> 4130 | J16: 0 | K16: 0 | L16: 0 | M16: 0 | N16: 67319 | O16: 2100 | P16: 0 | Q16: 5000 | R16: 0 | S16: =IF(MASTERDATA!$G$12="NO",0,IF(D16<18001,265,IF(D16<33501,440,IF(D16<54001,658,875)))) -> 658 | T16: 2576 | U16: 0 | V16: 0 | Y16: 0 | Z16: 10,334 | AA16: 56,985
B17: 12 | C17: 2024-12-01 | D17: 41300 | E17: 0 | F17: 0 | G17: 0 | H17: =ROUND(53%*D17,0) -> 21889 | I17: =IF(MASTERDATA!$G$9="NA",0,IF(MASTERDATA!$G$9=10%,ROUND(0.1*D17,0),ROUND(0.2*D17,0))) -> 4130 | J17: 0 | K17: 0 | L17: 0 | M17: 0 | N17: 67319 | O17: =O16 -> 2100 | P17: 0 | Q17: 5000 | R17: 0 | S17: =IF(MASTERDATA!$G$12="NO",0,IF(D17<18001,265,IF(D17<33501,440,IF(D17<54001,658,875)))) -> 658 | T17: 2576 | U17: 0 | V17: 0 | Y17: 0 | Z17: 10,334 | AA17: 56,985
B18: 1 | C18: 2025-01-01 | D18: 41300 | E18: 0 | F18: 0 | G18: 0 | H18: 21889 | I18: =IF(MASTERDATA!$G$9="NA",0,IF(MASTERDATA!$G$9=10%,ROUND(0.1*D18,0),ROUND(0.2*D18,0))) -> 4130 | J18: 0 | K18: 0 | L18: 0 | M18: 0 | N18: 67319 | O18: 2100 | P18: 0 | Q18: 5000 | R18: 0 | S18: =IF(MASTERDATA!$G$12="NO",0,IF(D18<18001,265,IF(D18<33501,440,IF(D18<54001,658,875)))) -> 658 | T18: 2576 | U18: 0 | V18: 0 | Y18: 0 | Z18: 10,334 | AA18: 56,985
B19: 2 | C19: 2025-02-01 | D19: 41300 | E19: 0 | F19: 0 | G19: 0 | H19: 21889 | I19: =IF(MASTERDATA!$G$9="NA",0,IF(MASTERDATA!$G$9=10%,ROUND(0.1*D19,0),ROUND(0.2*D19,0))) -> 4130 | J19: 0 | K19: 0 | L19: 0 | M19: 0 | N19: 67319 | O19: 2100 | P19: 0 | Q19: 5000 | R19: 0 | S19: =IF(MASTERDATA!$G$12="NO",0,IF(D19<18001,265,IF(D19<33501,440,IF(D19<54001,658,875)))) -> 658 | T19: 2576 | U19: 0 | V19: 0 | Y19: 0 | Z19: 10,334 | AA19: 56,985
C20: Salary Arrear | N20: 0 | Z20: 0 | AA20: 0
C21: Surender 2024-25 | D21: =IF(MASTERDATA!G11="NA",0,IF(AND(MONTH(MASTERDATA!G11)>=3,MONTH(MASTERDATA!G11)<=6),'GA55'!D8/2,IF(OR(MONTH(MASTERDATA!G11)>=7,MONTH(MASTERDATA!G11)<=2),'GA55'!D12/2))) -> 20650 | H21: =IF(AND(MASTERDATA!G11>=DATE(2024,3,1),MASTERDATA!G11<=DATE(2024,10,31)),'GA55'!D21*50%,IF(OR(AND(MASTERDATA!G11>=DATE(2024,11,1),MASTERDATA!G11<=DATE(2024,12,31)),AND(MASTERDATA!G11>=DATE(2025,1,1),MASTERDATA!G11<=DATE(2025,2,28))),'GA55'!D21*53%," ")) -> 10325 | N21: 30975 | Z21: 0 | AA21: 30,975
C22: Bonus 2024-25 | D22: =IF(MASTERDATA!D12="YES",6774,0) -> 0 | N22: 0 | O22: =IF(D22=0,0,ROUND(D22*25%,0)) -> 0 | P22: 0 | Z22: 0 | AA22: =N22-Z22 -> 0
C23: DA Arrear 1.24 to2.24 | H23: =(ROUND(D8*50%,0)-ROUND(D8*46%,0))*2 -> 3208 | N23: 3208 | O23: =N23 -> 3208 | P23: 0 | Z23: 3,208 | AA23: 0
C24: DA Arrear 7.24 to 10.24 | H24: =(ROUND(D12*53%,0)-ROUND(D12*50%,0))*4 -> 4956 | N24: 4956 | O24: =N24 -> 4956 | Z24: 4,956 | AA24: 0
C25: Other Arrear | N25: 0 | O25: =N25 -> 0 | Z25: 0 | AA25: 0
C26: Other 1 | N26: 0 | Z26: =SUM(O26:Y26) -> 0 | AA26: 0
C27: TOTAL | D27: =SUM(D8:D26) -> 511,450 | E27: 0 | F27: 0 | G27: 0 | H27: 268,845 | I27: 45,824 | J27: 0 | K27: 0 | L27: 0 | M27: 0 | N27: 826,119 | O27: 33,364 | P27: 0 | Q27: 60,000 | R27: 0 | S27: =SUM(S8:S26) -> 7,896 | T27: 30,912 | U27: 700 | V27: 0 | W27: 0 | X27: 0 | Y27: 0 | Z27: 132,872 | AA27: 693,247
E30: Signature of Employee | AA30: Signature of DDO
E31: =MASTERDATA!D5 -> SUNIL KUMAR MAHAWAR | N31: digitalgurujihelp | AA31: =MASTERDATA!G4 -> MR. SANTOSH KUMAR VYAS

Sheet EXTRA DEDUCATION
A1: वेतन के अलावा अन्य आय, कटौतियाँ, एवं छूट का विवरण
A2: =MASTERDATA!D5& ", "&'GA55'!D6&" PAN- "&'GA55'!M5 -> SUNIL KUMAR MAHAWAR , TEACHER (L10) PAN- GGGGGHGH
A4: 1 | B4: मकान किराया भत्ता (यदि रसीद से छूट ) HRA | C4: 00 | E4: 19 | F4: स्टैण्डर्ड डिडक्शन रुपये 50,000(old tax regime,75000(new tax regime) | G4: 75000
A5: 2 | B5: मनोरंजन भत्ता धारा 16 (ii) के अंतर्गत | C5: 00 | E5: 20 | F5: बचत खाते (All Saving Accounts) की जमा राशि पर प्राप्त ब्याज | G5: 00
A6: 3 | B6: व्यवसाय कर धारा 16 (iii) के अंतर्गत | C6: 00 | E6: 21 | F6: FD (Bank/ Post Office) आदि अन्य जमा राशि पर प्राप्त कुल ब्याज (PPF को छोड़कर) | G6: 00
A7: 4 | B7: गृह सम्पति से प्राप्त किराया - आय | C7: 00 | E7: 22 | F7: ब्याज के अलावा अन्य आय (विभिन्न स्त्रो़त्र से) | G7: 00
A8: 5 | B8: गृहकर | C8: 00 | E8: 23 | F8: अन्य मद में जमा करायी गयी राशि यदि कोई हो तो (धारा 80C के अन्तर्गत) | G8: 00
A9: 6 | B9: गृह ऋण की मूल किस्त यहाँ लिखनी है, HBA Premium | C9: 00 | E9: 24 | F9: धारा 80CCD पेंशन प्लान हेतु अंशदान (NPS के अलावा) | G9: 00
A10: 7 | B10: गृह ऋण की किस्त पर ब्याज जो छूट लेना है, यहाँ लिखें I | C10: 00 | E10: 25 | F10: स्थगित वार्षिकी (Defferred Anniuty) | G10: 00
A11: 8 | B11: जीवन बीमा प्रीमियम (जो वेतन से नहीं काटा गया है ) LIC | C11: 00 | E11: 26 | F11: धारा 10(14) के अन्तर्गत भत्ते जो कर मुक्त है | G11: 00
A12: 9 | B12: पी.एल.आई. (PLI) | C12: 00 | E12: 27 | F12: धारा 80D -चिकित्सा बीमा प्रीमियम (सामान्य 25000, वरिष्ठ नागरिक 50000) | G12: 00
A13: 10 | B13: ट्यूशन फ़ीस (Tution Fees) | C13: 00 | E13: 28 | F13: धारा 80DD-विकलांग आश्रितों के चिकित्सा उपचार (विकलांगता 40%-75000, 80%-125000) | G13: 00
A14: 11 | B14: यू एल आई पी / वार्षिक प्लान | C14: 00 | E14: 29 | F14: धारा 80DDB- विशिष्ट रोगों के उपचार हेतु कटौती (सामान्य 40000, वरिष्ठ नागरिक 1 लाख) | G14: 00
A15: 12 | B15: राष्ट्रीय बचत पत्र (NSC) | C15: 00 | E15: 30 | F15: धारा 80E- उच्च शिक्षा हेतु लिए ऋण का ब्याज | G15: 00
A16: 13 | B16: राष्ट्रीय बचत पत्र पर अदत ब्याज | E16: 31 | F16: धारा 80G-धर्मार्थ संस्थाओं आदि को दिये दान (क श्रेणी 100%, एवं ख श्रेणी 50%) | G16: 00
A17: 14 | B17: लोक भविष्य निधि (PPF) | C17: 00 | E17: 32 | F17: धारा 80U- स्थाई शारीरिक विकलांगता (अधिकतम 75000, 80% विकलांगता 125000)
A18: 15 | B18: राष्ट्रीय बचत पत्र स्कीम (NSS) | C18: 00 | E18: 33 | F18: धारा 80GGA- अनुमोदित वैज्ञानिक,सामाजिक,ग्रामीण विकास हेतु दिया गया दान | G18: 00
A19: 16 | B19: सुकन्या समृद्धि योजना में जमा राशि (SSY) | C19: 00 | E19: 34 | F19: धारा 89 के अन्तर्गत राहत | G19: 00
A20: 17 | B20: इक्विटी लिंक सेविंग स्कीम | C20: 00 | E20: 35 | F20: वेतन बिल के अलावा जमा कराया गया आयकर (TDS)
A21: 18 | B21: धारा 80 CCD (1B) NPS में अतिरिक्त अंशदान ( अधिकतम 50,000) | E21: 36 | F21: धारा 80 ccc पेंशन प्लान हेतु अंश दान ( NPS के अलावा )

Sheet OLD TAX REGIME
B2: =MASTERDATA!D3 -> GOVT SR SEC SCHOOL VEER DHOLIYA | O2: OLD TAX REGIME
B3: आयकर गणना प्रपत्र वर्ष 2024-25 ( कर निर्धारण वर्ष 2025-26 )
B4: 1 | C4: नाम कर्मचारी :- | E4: =MASTERDATA!D5 -> SUNIL KUMAR MAHAWAR | K4: पद | L4: ='NEW TAX REGIME'!L4:N4 -> TEACHER -L10 | O4: PAN : | P4: ='NEW TAX REGIME'!P4:Q4 -> GGGGGHGH
B5: 2 | C5: आय : वर्ष 2024-25 में प्राप्त कुल आय ( कर योग्य मूल्यों सहित ) | P5: ='GA55'!N27 -> ₹ 826,119
B6: 3 | C6: गृह किराया धारा 10 (13-A) के अंतर्गत व धारा 10(14) के अंतर्गत भत्ते तथा अन्य भत्ते जो कर मुक्त है I | P6: ='EXTRA DEDUCATION'!G10+'EXTRA DEDUCATION'!C4 -> 0
B7: 4 | C7: शेष ( 2-3) | P7: =P5-P6 -> ₹ 826,119
B8: 5 | C8: (i) मनोरंजन भत्ता धारा 16 (ii) के अंतर्गत | M8: ='EXTRA DEDUCATION'!C5 -> 0.00
C9: (ii) व्यवसाय कर धारा 16 (iii) के अंतर्गत | M9: ='EXTRA DEDUCATION'!C6 -> 0.00
C10: (iii) स्टैण्डर्ड डीडेक्सन (Standard Deduction) 50,000 (अधिकतम ) | M10: =IF('EXTRA DEDUCATION'!G4=0,0,IF('EXTRA DEDUCATION'!G4=50000,50000,IF('EXTRA DEDUCATION'!G4=75000,50000,))) -> 50000.00
C11: योग (5) | P11: =SUM(M8:O10) -> ₹ 50,000
B12: 6 | C12: शेष ( 4-5) | P12: =P7-P11 -> ₹ 776,119
B13: 7 | C13: गृह सम्पति से आय : (1) स्वयं के उपभोग में शून्य :- | K13: (2)प्राप्त किराया रु. | M13: ='EXTRA DEDUCATION'!C7 -> 0.00
C14: (ब) घटाइये | E14: किराये का 30% | H14: गृह ऋण पर ब्याज | K14: गृह कर | M14: योग 7 (ब)
E15: =ROUND(M13*0.3,0) -> 0.00 | H15: ='EXTRA DEDUCATION'!C10 -> 0.00 | K15: ='EXTRA DEDUCATION'!C8 -> 0.00 | M15: =E15+H15+K15 -> 0.00
C16: शेष -/+ (7 (अ) एवं योग 7 (ब) का ) | P16: =M13-M15 -> 0
B17: 8 | C17: कुल शेष -/+ (6 एवं 7) | P17: =P12+P16 -> ₹ 776,119
B18: 9 | C18: अन्य आय | P18: ='EXTRA DEDUCATION'!G6 -> 0
B19: 10 | C19: सकल आय योग (8+9) | P19: =P17+P18 -> ₹ 776,119
B20: 11 | C20: घटाए कटोतियाँ :- धारा US 80C, 80CCC,80CCD (1)
C21: (A) अधिकतम सीमा 1,50,000/- (धारा 80CCE), धारा 80CCD(2), तथा धारा 80CCD(1B) के अतिरिक्त
C22: (i) | D22: राज्य बीमा (SI) | H22: ='GA55'!Q27 -> ₹ 60,000 | J22: (xi) | K22: पेंशन योजना में योगदान ECPF धारा 80ccd(1) | N22: ='EXTRA DEDUCATION'!G8 -> 0
C23: (ii) | D23: जीवन बीमा ( LIC) | H23: ='GA55'!T27+'EXTRA DEDUCATION'!C11 -> ₹ 30,912
C24: (iii) | D24: राष्ट्रीय बचत पत्र (NSC) | H24: ='EXTRA DEDUCATION'!C15 -> 0 | J24: (xii) | K24: पेंशन प्लान हेतु योगदान (धारा 80ccc) | N24: ='EXTRA DEDUCATION'!G20 -> 0
C25: (iv) | D25: लोक भविष्य निधि (PPF) | H25: ='EXTRA DEDUCATION'!C17 -> 0 | J25: (xiii) | K25: राष्ट्रीय बचत पत्र पर अदत ब्याज | N25: ='EXTRA DEDUCATION'!C15 -> 0
C26: (v) | D26: राष्ट्रीय बचत पत्र स्कीम (NSS) | H26: ='EXTRA DEDUCATION'!C18 -> 0 | J26: (xiv) | K26: टियुशन फ़ीस | N26: ='EXTRA DEDUCATION'!C13 -> 0
C27: (vi) | D27: सामान्य प्रावधायी निधि GPF) / GPF - 2004 | H27: ='GA55'!O27 -> ₹ 33,364 | J27: (xv) | K27: इक्विटी लिंक सेविंग स्कीम | N27: ='EXTRA DEDUCATION'!C20 -> 0
C28: (vii) | D28: सामूहिक बीमा प्रीमियम (G.Ins.) | H28: ='GA55'!U27 -> ₹ 700 | J28: (xvi) | K28: स्थगत वार्षिकी (Defferred Annuty) | N28: ='EXTRA DEDUCATION'!G9 -> 0
C29: (viii) | D29: यू एल आई पी / वार्षिक प्लान | H29: ='EXTRA DEDUCATION'!C14 -> 0 | J29: (xvii) | K29: पी.एल.आई . (PLI) | N29: ='EXTRA DEDUCATION'!C12 -> 0
C30: (ix) | D30: गृह ऋण किस्त (HBA Premium) | H30: ='EXTRA DEDUCATION'!C9 -> 0 | J30: (xviii) | K30: अन्य राशि जो धारा 80 C के अंतर्गत छुट | N30: ='EXTRA DEDUCATION'!G7 -> 0
C31: (x) | D31: सुकन्या समृद्धि योजना में जमा राशि | H31: ='EXTRA DEDUCATION'!C19 -> 0 | J31: (xix) | K31: योग ( i से xix ) | N31: =SUM(H22:I31)+SUM(N22:O30) -> ₹ 124,976
C32: अधिकतम कटोती राशि 1.50 लाख रुपये तक | P32: =IF(N31<150001,ROUND(N31,0),150000) -> ₹ 124,976
C33: (B) घटाइये धारा 80CCD(2) नियोक्ता द्वारा पेंशन अंशदान की राशि (अधिकतम वेतन का 10%) पृथक से छुट | P33: 0
C34: (C) घटाइये - धारा 80CCD (1B) नवीन पेंशन योजना में अतिरिक्त अंशदान (अधिकतम 50,000 रु. ) | P34: =IF('EXTRA DEDUCATION'!C21>=50000,50000,'EXTRA DEDUCATION'!C21) -> 0
C35: योग 11(A+B+C) | P35: =SUM(P32:Q34) -> ₹ 124,976
B36: 12 | C36: अन्य कटोतियाँ
C37: 1. धारा 80 D चिकित्सा बीमा प्रीमियम (स्वयं पति पत्नि व बच्चों के लिए रु. 25,000 माता - पिता के लिए रु. 25,000 , सीनियर सिटीजन रु. 50,000 ) | P37: ='EXTRA DEDUCATION'!G11 -> 0
C38: 2. धारा 80DD विकलांग आश्रितों के चिकित्सा उपचार (अधिकतम 75,000 तथा 80% या अधिक विकलांगता ( 1,25,000) | P38: ='EXTRA DEDUCATION'!G12 -> 0
C39: 3. धारा 80DDB विशिष्ट रोगों के उपचार हेतु छुट (अधिकतम रु. 40,000, सीनियर सिटीजन हेतु रु. 1,00,000) | P39: ='EXTRA DEDUCATION'!G13 -> 0
C40: 4. धारा 80E उच्च शिक्षा हेतु लिए गए ऋण का ब्याज | P40: ='EXTRA DEDUCATION'!G14 -> 0
C41: 5. धारा 80G धर्मार्थ संस्थाओ आदि को दिए दान ( क श्रेणी में 100 प्रतिशत एव ख श्रेणी में 50 प्रतिशत) (केंद्र एव राज्य सरकार के फण्ड में ) | P41: ='EXTRA DEDUCATION'!G15 -> 0
C42: 6. धारा 80U स्थाई रूप से शारीरिक असमर्थता की दशा में (अधिकतम 75,000 तथा अधिनियम 1995 के अनुसार 1,25,000) | P42: ='EXTRA DEDUCATION'!G16 -> 0
C43: 7. धारा 80 TTA बचत खाते पर अधिकतम ब्याज पर 10,000 U/S 194(IA) | P43: =IF(MASTERDATA!D14="YES",0,IF('EXTRA DEDUCATION'!G4>10000,10000,'EXTRA DEDUCATION'!G4)) -> ₹ 10,000
C44: 8. धारा 80 TTB वरिष्ठ नागरिकों को सभी प्रकार के ब्याज पर छूट अधिकतम - 50,000 रु. U/S 194(A) | P44: =IF(MASTERDATA!D14="NO",0,IF('EXTRA DEDUCATION'!G4<50001,'EXTRA DEDUCATION'!G4,50000)) -> 0
C45: 9. धारा 80 GGA अनुमोदित वैज्ञानिक, सामाजिक, ग्रामीण विकास आदि हेतु दिया गया दान | P45: ='EXTRA DEDUCATION'!G17 -> 0
C46: कुल योग 12 ( 1 से 9 तक ) | P46: =SUM(P37:Q45) -> ₹ 10,000
B47: 13 | C47: कुल कटोती ( 11 + 12) | P47: =P35+P46 -> ₹ 134,976
B48: 14 | C48: कर योग्य आय ( 10 - 13 ) | P48: =(P19-P47) -> ₹ 641,143
B49: 15 | C49: कुल आय की राशि को सम्पूर्ण करना ( दस के गुणांक में ) धारा 288A | P49: =ROUND(P48,-1) -> ₹ 641,140
B50: 16 | C50: आयकर की गणना उपर्युक्त कॉलम 15 के आधार पर
C51: सामान्य नागरिक | H51: वरिष्ठ नागरिक (60 से 80 वर्ष तक) | L51: 80 वर्ष या अधिक आयु
C52: 2,50,000 तक | F52: Nil | H52: 3,00,000 तक | K52: Nil | P52: 0
C53: 2,50,001-5,00,000 | F53: 5% | H53: 3,00,001-5,00,000 | K53: 5% | L53: 5,00,000 तक | O53: Nil | P53: =ROUND(IF(MASTERDATA!$D$14="NO",IF(P49<250001,0,IF(P49>500000,12500,((P49-250000)*0.05))),IF(P49<300001,0,IF(P49>500000,10000,((P49-300000)*0.05)))),0) -> ₹ 12,500
C54: 5,00,001-10,00,000 | F54: 20% | H54: 5,00,001-10,00,000 | K54: 20% | L54: 5,00,001-10,00,000 | O54: 20% | P54: =IF(P49<500001,0,IF(P49>1000000,100000,((P49-500000)*0.2))) -> ₹ 28,228
C55: 10,00,000 से अधिक | F55: 30% | H55: 10,00,000 से अधिक | K55: 30% | L55: 10,00,000 से अधिक | O55: 30% | P55: =IF(P49<1000001,0,((P49-1000000)*0.3)) -> 0
C56: (1) योग आयकर | P56: =SUM(P52:Q55) -> ₹ 40,728
C57: (2) छुट धारा 87(A) (5 लाख की कर योग्य आय पर आयकर की छुट अधिकतम रु. 12500/- तक) | P57: =IF(P49>500000,0,IF(P56<12501,P56,12500)) -> 0
C58: (3) शेष आयकर (1-2) | P58: =P56-P57 -> ₹ 40,728
C59: (4) शिक्षा एवं चिकित्सा उपकर 4% (आयकर पर ) | P59: =ROUND(P58*0.04,0) -> ₹ 1,629
C60: कुल आयकर (3+4) | P60: =SUM(P58:Q59) -> ₹ 42,357
B61: 17 | C61: घटाइये :- राहत धारा 89 के तहत | P61: ='EXTRA DEDUCATION'!G18 -> 0
B62: 18 | C62: कुल शेष आयकर | P62: =P60-P61 -> ₹ 42,357
B63: 19 | C63: आयकर कटौती का विवरण | F63: सितम्बर 2024 तक कुल राशि | J63: अक्टू. से दिस. 24 तक राशि | L63: जनवरी 2025 राशि | M63: फरवरी 2025 राशि | O63: टी. डी. एस. राशि | P63: कुल टैक्स कटौती योग कॉलम 19
F64: =SUM('GA55'!V8:V14) -> 0 | J64: =SUM('GA55'!V15:V17) -> 0 | L64: ='GA55'!V18 -> 0 | M64: ='GA55'!V19 -> 0 | O64: ='EXTRA DEDUCATION'!G19+'GA55'!V20+'GA55'!V21+'GA55'!V22+'GA55'!V23+'GA55'!V25+'GA55'!V26 -> 0 | P64: =F64+J64+L64+M64+O64 -> 0
B65: =IF(P62>P64,"Income Tax Payable (Old Tax Regime)",IF(P62<P64,"Income Tax Refundable (Old Tax Regime)","Income Tax Payble/Refundable (Old Tax Regime)")) -> Income Tax Payable (Old Tax Regime) | P65: =P62-P64 -> ₹ 42,357
E67: Signature of Employee | O67: Signature of DDO

Sheet NEW TAX REGIME
B2: =MASTERDATA!D3 -> GOVT SR SEC SCHOOL VEER DHOLIYA | O2: NEW TAX REGIME
B3: आयकर गणना प्रपत्र वर्ष 2024-25 ( कर निर्धारण वर्ष 2025-26 )
B4: 1 | C4: नाम कर्मचारी :- | E4: =MASTERDATA!D5 -> SUNIL KUMAR MAHAWAR | K4: पद :- | L4: =MASTERDATA!G5&" -"&MASTERDATA!D10 -> TEACHER -L10 | O4: PAN : | P4: =MASTERDATA!D6 -> GGGGGHGH
B5: 2 | C5: आय : वर्ष 2024-25 में प्राप्त कुल आय ( कर योग्य मूल्यों सहित ) | P5: ='OLD TAX REGIME'!P5:Q5 -> ₹ 826,119
B6: 3 | C6: गृह किराया धारा 10 (13-A) के अंतर्गत व धारा 10(14) के अंतर्गत भत्ते तथा अन्य भत्ते जो कर मुक्त है I | P6: 0
B7: 4 | C7: शेष ( 2-3) | P7: =P5-P6 -> ₹ 826,119
B8: 5 | C8: (i) मनोरंजन भत्ता धारा 16 (ii) के अंतर्गत | M8: 0.00
C9: (ii) व्यवसाय कर धारा 16 (iii) के अंतर्गत | M9: 0.00
C10: (iii) स्टैण्डर्ड डीडेक्सन (Standard Deduction) 75,000 (अधिकतम ) | M10: =IF('EXTRA DEDUCATION'!G4=0,0,IF('EXTRA DEDUCATION'!G4=50000,0,IF('EXTRA DEDUCATION'!G4=75000,75000))) -> 75000.00
C11: योग (5) | P11: =SUM(M8:O10) -> ₹ 75,000
B12: 6 | C12: शेष ( 4-5) | P12: =P7-P11 -> ₹ 751,119
B13: 7 | C13: गृह सम्पति से आय : (1) स्वयं के उपभोग में शून्य :- | K13: (2) प्राप्त किराया रु . | M13: ='EXTRA DEDUCATION'!C7 -> 0.00
C14: (ब) घटाइये | E14: किराये का 30% | H14: गृह ऋण पर ब्याज | K14: गृह कर | M14: योग 7 (ब)
E15: 0.00 | H15: 0.00 | K15: 0.00 | M15: =SUM(E15:L15) -> 0.00
C16: शेष -/+ (7 (अ) एवं योग 7 (ब) का ) :- | P16: =M13 -> 0
B17: 8 | C17: कुल शेष -/+ (6 एवं 7) | P17: =P12+P16 -> ₹ 751,119
B18: 9 | C18: अन्य आय | P18: ='EXTRA DEDUCATION'!G6 -> 0
B19: 10 | C19: सकल आय योग (8+9) | P19: =P17+P18 -> ₹ 751,119
B20: 11 | C20: घटाए कटोतियाँ :-
C21: (A) धारा US 80C, 80CCC,80CCD (1) अधिकतम कटौती की राशि | P21: 0
C22: (B) घटाइये धारा 80CCD(2) नियोक्ता द्वारा पेंशन अंशदान की राशि (अधिकतम वेतन का 10%) पृथक से छुट | P22: 0
C23: (C) घटाइये - धारा 80CCD (1B) नवीन पेंशन योजना में अतिरिक्त अंशदान (अधिकतम 50,000 रु. ) | P23: 0
C24: योग 11(A+B+C) | P24: =SUM(P21:Q23) -> 0
B25: 12 | C25: अन्य कटोतियाँ
C26: 1. धारा 80 D चिकित्सा बीमा प्रीमियम (स्वयं पति पत्नि व बच्चों के लिए रु. 25,000 माता - पिता के लिए रु. 25,000 , सीनियर सिटीजन रु. 50,000 ) | P26: 0
C27: 2. धारा 80DD विकलांग आश्रितों के चिकित्सा उपचार (अधिकतम 75,000 तथा 80% या अधिक विकलांगता ( 1,25,000) | P27: 0
C28: 3. धारा 80DDB विशिष्ट रोगों के उपचार हेतु छुट (अधिकतम रु. 40,000, सीनियर सिटीजन हेतु रु. 1,00,000) | P28: 0
C29: 4. धारा 80E उच्च शिक्षा हेतु लिए गए ऋण का ब्याज | P29: 0
C30: 5. धारा 80G धर्मार्थ संस्थाओ आदि को दिए दान ( क श्रेणी में 100 प्रतिशत एव ख श्रेणी में 50 प्रतिशत) (केंद्र एव राज्य सरकार के फण्ड में ) | P30: 0
C31: 6. धारा 80U स्थाई रूप से शारीरिक असमर्थता की दशा में (अधिकतम 75,000 तथा अधिनियम 1995 के अनुसार 1,25,000) | P31: 0
C32: 7. धारा 80 TTA बचत खाते पर अधिकतम ब्याज पर 10,000 U/S 194(IA) | P32: 0
C33: 8. धारा 80 TTB वरिष्ठ नागरिकों को सभी प्रकार के ब्याज पर छूट अधिकतम - 50,000 रु. U/S 194(A) | P33: 0
C34: 9. धारा 80 GGA अनुमोदित वैज्ञानिक, सामाजिक, ग्रामीण विकास आदि हेतु दिया गया दान | P34: 0
C35: कुल योग 12 ( 1 से 9 तक ) | P35: =SUM(Q26:Q34) -> 0
B36: 13 | C36: कुल कटोती ( 11 + 12) | P36: =P24+P35 -> 0
B37: 14 | C37: कर योग्य आय ( 10 - 13 ) | P37: =(P19-P36) -> ₹ 751,119
B38: 15 | C38: कुल आय की राशि को सम्पूर्ण करना ( दस के गुणांक में ) धारा 288A | P38: =ROUND(P37,-1) -> ₹ 751,120
B39: 16 | C39: आयकर की गणना उपर्युक्त कॉलम 15 के आधार पर
C40: 80 वर्ष या अधिक आयु | H40: वरिष्ठ नागरिक (60 से 80 वर्ष तक) | L40: सामान्य नागरिक
C41: 3,00,000 तक | F41: Nil | H41: 3,00,000 तक | K41: Nil | L41: 3,00,000 तक | O41: Nil | P41: 0
C42: 3,00,001-7,00,000 | F42: 5% | H42: 3,00,001-7,00,000 | K42: 5% | L42: 3,00,001-7,00,000 | O42: 5% | P42: =IF(P38<300001,0,IF(P38>700000,20000,((P38-300000)*0.05))) -> ₹ 20,000
C43: 7,00,001-10,00,000 | F43: 10% | H43: 7,00,001-10,00,000 | K43: 10% | L43: 7,00,001-10,00,000 | O43: 10% | P43: =IF(P38<700001,0,IF(P38>1000000,30000,((P38-700000)*0.1))) -> ₹ 5,112
C44: 10,00,001-12,00,000 | F44: 15% | H44: 10,00,001-12,00,000 | K44: 15% | L44: 10,00,001-12,00,000 | O44: 15% | P44: =IF(P38<1000001,0,IF(P38>1200000,30000,((P38-1000000)*0.15))) -> 0
C45: 12,00,001 - 15,00,000 | F45: 20% | H45: 12,00,001 - 15,00,000 | K45: 20% | L45: 12,00,001 - 15,00,000 | O45: 20% | P45: =IF(P38<1200001,0,IF(P38>1500000,60000,((P38-1200000)*0.2))) -> 0
C46: 15,00,001 से अधिक | F46: 30% | H46: 15,00,001 से अधिक | K46: 30% | L46: 15,00,001 से अधिक | O46: 30% | P46: =IF(P38<1500001,0,(P38-1500000)*0.3) -> 0
C47: (1) योग आयकर | P47: =SUM(P41:Q46) -> ₹ 25,112
C48: (2) छुट धारा 87(A) (7 लाख की कर योग्य आय पर आयकर की छुट अधिकतम रु. 25000/- तक) | P48: =IF(P38<700001,P47,IF(P38>722224,0,P47-(P38-700000))) -> 0
C49: (3) शेष आयकर (1-2) | P49: =P47-P48 -> ₹ 25,112
C50: (4) शिक्षा एवं चिकित्सा उपकर 4% (आयकर पर ) | P50: =ROUND(P49*0.04,0) -> ₹ 1,004
C51: कुल आयकर (3+4):- | P51: =SUM(P49:Q50) -> ₹ 26,116
B52: 17 | C52: घटाइये :- राहत धारा 89 के तहत | P52: ='EXTRA DEDUCATION'!G18 -> 0
B53: 18 | C53: कुल शेष आयकर | P53: =P51-P52 -> ₹ 26,116
B54: 19 | C54: आयकर कटौती का विवरण | F54: सितम्बर 2024 तक कुल राशि | J54: अक्टूम्बर से दिसम्बर 24 तक राशि | L54: जनवरी 2025 राशि | M54: फरवरी 2025 राशि | O54: टी. डी. एस. राशि | P54: कुल टैक्स कटौती योग कॉलम 19
F55: ='OLD TAX REGIME'!F64:I64 -> 0 | J55: ='OLD TAX REGIME'!J64:K64 -> 0 | L55: ='OLD TAX REGIME'!L64 -> 0 | M55: ='OLD TAX REGIME'!M64:N64 -> 0 | O55: ='OLD TAX REGIME'!O64 -> 0 | P55: =F55+J55+L55+M55+O55 -> 0
B56: =IF(P53>P55,"Income Tax Payable (New Tax Regime)",IF(P53<P55,"Income Tax Refundable (New Tax Regime)","Income Tax Payble/Refundable")) -> Income Tax Payable (New Tax Regime) | P56: =P53-P55 -> ₹ 26,116
E59: Signature of Employee | O59: Signature of DDO

Sheet Sheet1 (hidden)
